{"text_format":"3","workbook":"xlsx","n_sheets":1,"sheets":["Лист1"],"not_rendered":{"defined_names":8},"read":"whole","date_system":"1900"}

{"sheet":"Лист1","index":0,"n_rows":28,"n_cols":14,"rows_kept":28}
["№","Название ОУ","Фамилия","Имя","Класс","Класс участия","Первичный балл","Добавлено по итогам апелляций","Итоговый балл","Макс. Балл","Статус","Призер регионального / республиканского этапа прошлого года","Учитель","Место работы учителя"]
[1,"МБОУ \"Большекабанская СОШ имени академика В.И. Андреева\"","Якупов","Амир",7,7,2.5,0,{"$f":"G2+H2","v":2.5},40,"участник","нет","Нысырова Р.Р.","МБОУ \"Большекабанская СОШ имени академика В.И. Андреева\""]
[2,"МБОУ \"Габишевская СОШ им. М.А.Гареева\"","Садрутдинов","Арслан",7,7,0,0,{"$f":"G3+H3","v":0},40,"участник","нет","Яруллина Гульшат Ильясовна","МБОУ \"Габишевская СОШ им.М.А.Гареева\""]
[3,"МБОУ \"СОШ пос. им. 25 Октября\"","Шигапова","Милана",7,7,0,0,0,40,"участник","нет","Шайдуллин А.Н.","МБОУ \"СОШ пос. им. 25 Октября\""]
[4,"МБОУ\"Нармонская СОШ\"","Хасанова","Ясмина",7,7,2.5,0,2.5,40,"участник","нет","Бусырева Гульшат Рагатевна","МБОУ \"Нармонская СОШ\""]
[5,"МБОУ\"Нармонская СОШ\"","Латыпов","Ильнар",7,7,0.5,0,0.5,40,"участник","нет","Бусырева Гульшат Рагатевна","МБОУ \"Нармонская СОШ\""]
[6,"МБОУ «Многопрофильный лицей «Здоровое поколение»","Мулюкова","Азалия",7,7,1,0,1,40,"участник","нет","Савельева В.н.","МБОУ Многопрофильный лицей \"Здоровое поколение\""]
[7,"МБОУ «Многопрофильный лицей «Здоровое поколение»","Хохлов","Матвей",7,7,1,0,1,40,"участник","нет","Савельева В.н.","МБОУ Многопрофильный лицей \"Здоровое поколение\""]
[8,"МБОУ \"Многопрофильный лицей \"Инноватика\"","Абдулкин","Мурат",7,7,9,0,9,40,"участник","нет","Бычкова Г.Г.","Многопрофильный лицей Инноватика\""]
[9,"МБОУ \"Многопрофильный лицей \"Инноватика\"","Утенов","Жанат",7,7,0,0,0,40,"участник","нет","Бычкова Г.Г.","Многопрофильный лицей Инноватика\""]
[10,"МБОУ \"Габишевская СОШ им. М.А.Гареева\"","Хафизов","Тимур",8,8,2,0,2,40,"участник","нет","Камалетдинова Г.Р.\n","МБОУ \"Габишевская СОШ им.М.А.Гареева\""]
[11,"МБОУ\"СОШ пос. им. 25 Октября\"","Никоноров","Никита",8,8,2,0,2,40,"участник","нет","Шайдуллин А. Н.","МБОУ \"СОШ пос. им. 25 Октября\""]
[12,"МБОУ \"Никольская СОШ\"","Чернов","Артем",8,8,2,0,2,40,"участник","нет","Толокнова Вероника Геннадьевна","МБОУ \"Никольская СОШ\"Лаишевский р-н РТ"]
[13,"МБОУ \" ЛСОШ №2 им. Героя Советского Союза Б.К.Кузнецова\"","Макарова","Алина",8,8,2,0,2,40,"участник","нет","Савельева А.В.","МБОУ \"Лаишевская средняя общеобразовательная школа №2 имени Героя Советского Союза Бориса Кирилловича Кузнецова\"Лаишевского муниципального района РТ"]
[14,"МБОУ \"Многопрофильный лицей \"Инноватика\"","Гатин","Салават",8,8,2,0,2,40,"участник","нет","Бычкова Г.Г.","\"Многопрофильный лицей \"Инноватика\""]
[15,"МБОУ \"Многопрофильный лицей \"Инноватика\"","Хайсарова","Аделина",8,8,0,0,0,40,"участник","нет","Бычкова Г.Г.","\"Многопрофильный лицей \"Инноватика\""]
[16,"МБОУ \"Многопрофильный лицей \"Инноватика\"","Мурзеева","Софья",8,8,0,0,0,40,"участник","нет","Бычкова Г.Г.","\"Многопрофильный лицей \"Инноватика\""]
[17,"МБОУ Среднедевятовская СОШ","Исхаков","Алан",9,9,0,0,0,50,"участник","нет","Тряева Елизавета Владимировна","МБОУ Среднедевятовская СОШ"]
[18,"МБОУ \"Никольская СОШ\"","Шаяхметов","Нияз",9,9,0,0,0,50,"участник","да","Толокнова Вероника Геннадьевна","МБОУ \"Никольская СОШ\"Лаишевский р-н РТ"]
[19,"МБОУ \"Гимназия №1 г. Лаишево\"","Бикмиев","Булат",9,9,0,0,0,50,"участник","нет","Черняева Е.П.","МБОУ \"Гимназия №1 г.Лаишево\""]
[20,"МБОУ «Многопрофильный лицей «Здоровое поколение»","Трофимов","Михаил",9,9,23,0,23,50,"призер","нет","Савельева В.н.","МБОУ Многопрофильный лицей \"Здоровое поколение\""]
[21,"МБОУ \"Многопрофильный лицей \"Инноватика\"","Гришина","Елизавета",9,9,0,0,0,50,"участник","нет","Бычкова Г.Г.","\"Многопрофильный лицей \"Инноватика\""]
[22,"МБОУ \"Большекабанская СОШ имени академика В.И. Андреева\"","Бурнаева","Анастасия",10,10,0,0,0,50,"участник","нет","Нысырова Р.Р.","МБОУ \"Большекабанская СОШ имени академика В.И. Андреева\""]
[23,"МБОУ \"Гимназия №1 г. Лаишево\"","Хабибуллин","Нурислам",10,10,0,0,0,50,"участник","нет","Конурова Татьяна Александровна","МБОУ \"Гимназия №1 г. Лаишево\""]
[24,"МБОУ Рождественская СОШ","Панаев","Сергей",10,10,1,0,1,50,"участник","нет","Галеев Д.И.","МБОУ Рождественская СОШ"]
[25,"МБОУ\"Нармонская СОШ\"","Хасанов","Арслан",10,10,0,0,0,50,"участник","нет","Бусырева Гульшат Рагатевна","МБОУ \"Нармонская СОШ\""]
[26,"МБОУ \" ЛСОШ №2 им. Героя Советского Союза Б.К.Кузнецова\"","Драгунова","Дарья",10,10,0,0,0,50,"участник","нет","Савельева А.В.","МБОУ \"Лаишевская средняя общеобразовательная школа №2 имени Героя Советского Союза Бориса Кирилловича Кузнецова\"Лаишевского муниципального района РТ"]
[27,"МБОУ\"СОШ пос. им. 25 Октября\"","Суханов","Михаил",11,11,2,0,2,50,"участник","нет","Шайдуллин А. Н.","МБОУ \"СОШ пос. им. 25 Октября\""]